[Event "Live Chess"]
[Site "Chess.com"]
[Date "2023.05.21"]
[Round "-"]
[White "lateforthesky"]
[Black "Hacker_2009"]
[Result "0-1"]
[WhiteElo "2098"]
[BlackElo "1948"]
[TimeControl "300"]
[EndTime "7:11:58 PDT"]
[Termination "Hacker_2009 won on time"]

1. e4 {[%clk 0:04:58.3]} 1... c5 {[%clk 0:04:57.2]} 2. Nf3 {[%clk 0:04:56.7]}
2... d6 {[%clk 0:04:55.8]} 3. Nc3 {[%clk 0:04:53.1]} 3... Nf6 {[%clk 0:04:53]}
4. e5 {[%clk 0:04:51.6]} 4... dxe5 {[%clk 0:04:51.6]} 5. Nxe5 {[%clk 0:04:50.8]}
5... Qc7 {[%clk 0:04:49.5]} 6. Nc4 {[%clk 0:04:49.2]} 6... a6 {[%clk 0:04:46.9]}
7. a4 {[%clk 0:04:47.4]} 7... e6 {[%clk 0:04:45.2]} 8. d3 {[%clk 0:04:42.5]}
8... Be7 {[%clk 0:04:42.5]} 9. Be2 {[%clk 0:04:41]} 9... O-O {[%clk 0:04:39.7]}
10. a5 {[%clk 0:04:37.9]} 10... Nc6 {[%clk 0:04:29.4]} 11. Nb6 {[%clk
0:04:35.3]} 11... Rb8 {[%clk 0:04:28.3]} 12. O-O {[%clk 0:04:31.5]} 12... Nd4
{[%clk 0:04:26.3]} 13. Nxc8 {[%clk 0:04:24.5]} 13... Rfxc8 {[%clk 0:04:23.7]}
14. Bf3 {[%clk 0:04:23.2]} 14... Nxf3+ {[%clk 0:04:17.2]} 15. Qxf3 {[%clk
0:04:21.5]} 15... Qc6 {[%clk 0:04:16.7]} 16. Qxc6 {[%clk 0:04:14.7]} 16... Rxc6
{[%clk 0:04:14.9]} 17. Bf4 {[%clk 0:04:08.2]} 17... Rd8 {[%clk 0:04:09.4]} 18.
Be5 {[%clk 0:03:45.1]} 18... Nd5 {[%clk 0:03:59.6]} 19. Ne4 {[%clk 0:03:36.5]}
19... f6 {[%clk 0:03:53]} 20. Bc3 {[%clk 0:03:27.8]} 20... Nxc3 {[%clk 0:03:47]}
21. Nxc3 {[%clk 0:03:25.8]} 21... e5 {[%clk 0:03:44.6]} 22. Ra4 {[%clk
0:03:17.8]} 22... Kf7 {[%clk 0:03:41.4]} 23. Re1 {[%clk 0:03:10.1]} 23... Rd4
{[%clk 0:03:38]} 24. Rc4 {[%clk 0:03:03.4]} 24... Rxc4 {[%clk 0:03:36.4]} 25.
dxc4 {[%clk 0:03:02.1]} 25... Bd8 {[%clk 0:03:32]} 26. Rd1 {[%clk 0:03:01.4]}
26... Bxa5 {[%clk 0:03:29.3]} 27. Rd7+ {[%clk 0:02:59.5]} 27... Kg6 {[%clk
0:03:28.3]} 28. Rxb7 {[%clk 0:02:57.9]} 28... Bxc3 {[%clk 0:03:27.4]} 29. bxc3
{[%clk 0:02:56.6]} 29... Rd6 {[%clk 0:03:26.6]} 30. Kf1 {[%clk 0:02:55]} 30...
Rd2 {[%clk 0:03:25.9]} 31. Rb2 {[%clk 0:02:51.2]} 31... Rd6 {[%clk 0:03:18]} 32.
Ke2 {[%clk 0:02:49.1]} 32... f5 {[%clk 0:03:16.7]} 33. Ra2 {[%clk 0:02:45.2]}
33... Kf6 {[%clk 0:03:14.5]} 34. Ra5 {[%clk 0:02:43.9]} 34... Rc6 {[%clk
0:03:12.4]} 35. Ke3 {[%clk 0:02:42.7]} 35... g5 {[%clk 0:03:09.2]} 36. g3 {[%clk
0:02:35.9]} 36... e4 {[%clk 0:03:06.3]} 37. g4 {[%clk 0:02:20.2]} 37... Ke5
{[%clk 0:03:02.2]} 38. gxf5 {[%clk 0:02:17.8]} 38... Kxf5 {[%clk 0:03:01.2]} 39.
f3 {[%clk 0:01:58.6]} 39... exf3 {[%clk 0:02:59.4]} 40. Kxf3 {[%clk 0:01:57.9]}
40... h5 {[%clk 0:02:57.2]} 41. h3 {[%clk 0:01:54.3]} 41... Ke5 {[%clk 0:02:45]}
42. Ke3 {[%clk 0:01:51.5]} 42... Kf5 {[%clk 0:02:01.2]} 43. Kf3 {[%clk 0:01:50]}
43... g4+ {[%clk 0:02:00.1]} 44. hxg4+ {[%clk 0:01:48.4]} 44... hxg4+ {[%clk
0:02:00]} 45. Kg3 {[%clk 0:01:47.4]} 45... Kg5 {[%clk 0:01:59.4]} 46. Ra1 {[%clk
0:01:38]} 46... Rh6 {[%clk 0:01:57.3]} 47. Ra5 {[%clk 0:01:32.3]} 47... Rh3+
{[%clk 0:01:56.3]} 48. Kg2 {[%clk 0:01:31.4]} 48... Rxc3 {[%clk 0:01:55.7]} 49.
Rxc5+ {[%clk 0:01:29.9]} 49... Kf4 {[%clk 0:01:52.3]} 50. Rc6 {[%clk 0:01:26.9]}
50... Rxc2+ {[%clk 0:01:51.6]} 51. Kf1 {[%clk 0:01:24.8]} 51... a5 {[%clk
0:01:36.5]} 52. Ra6 {[%clk 0:01:22.3]} 52... Kf3 {[%clk 0:01:26.9]} 53. Rf6+
{[%clk 0:01:18.7]} 53... Kg3 {[%clk 0:01:25.9]} 54. Ra6 {[%clk 0:01:16.5]} 54...
Rxc4 {[%clk 0:01:24]} 55. Rxa5 {[%clk 0:01:15.4]} 55... Rc1+ {[%clk 0:01:22.7]}
56. Ke2 {[%clk 0:01:14]} 56... Kg2 {[%clk 0:01:21.9]} 57. Rg5 {[%clk 0:01:06.4]}
57... g3 {[%clk 0:01:21.2]} 58. Rg8 {[%clk 0:01:03.4]} 58... Rc7 {[%clk
0:01:20.5]} 59. Rg6 {[%clk 0:00:59.6]} 59... Re7+ {[%clk 0:01:19.7]} 60. Kd3
{[%clk 0:00:56.2]} 60... Re1 {[%clk 0:01:18.4]} 61. Kd2 {[%clk 0:00:54.9]} 61...
Rf1 {[%clk 0:01:17.4]} 62. Ke2 {[%clk 0:00:54.1]} 62... Rf2+ {[%clk 0:01:16.5]}
63. Ke1 {[%clk 0:00:53]} 63... Rf4 {[%clk 0:01:15.5]} 64. Ke2 {[%clk 0:00:51.6]}
64... Re4+ {[%clk 0:01:14.1]} 65. Kd3 {[%clk 0:00:49.3]} 65... Rh4 {[%clk
0:01:12]} 66. Ke2 {[%clk 0:00:47.2]} 66... Kh2 {[%clk 0:01:09.3]} 67. Kf3 {[%clk
0:00:45.4]} 67... Rh3 {[%clk 0:01:03.5]} 68. Ke2 {[%clk 0:00:26.9]} 68... g2
{[%clk 0:01:02.1]} 69. Kf2 {[%clk 0:00:25.6]} 69... Ra3 {[%clk 0:00:51.8]} 70.
Rxg2+ {[%clk 0:00:23.9]} 70... Kh3 {[%clk 0:00:51.7]} 71. Rg8 {[%clk 0:00:22.6]}
71... Ra7 {[%clk 0:00:49.5]} 72. Ke3 {[%clk 0:00:18.6]} 72... Ra3+ {[%clk
0:00:47.1]} 73. Ke4 {[%clk 0:00:17.9]} 73... Ra4+ {[%clk 0:00:46.6]} 74. Ke3
{[%clk 0:00:17.4]} 74... Ra6 {[%clk 0:00:44.7]} 75. Ke2 {[%clk 0:00:16.7]} 75...
Re6+ {[%clk 0:00:42.7]} 76. Kd3 {[%clk 0:00:15.8]} 76... Rd6+ {[%clk 0:00:40.4]}
77. Ke2 {[%clk 0:00:15.2]} 77... Rc6 {[%clk 0:00:40.3]} 78. Kf3 {[%clk
0:00:14.5]} 78... Rf6+ {[%clk 0:00:39.5]} 79. Ke2 {[%clk 0:00:13.4]} 79... Rf7
{[%clk 0:00:38.7]} 80. Ke3 {[%clk 0:00:12.7]} 80... Rf6 {[%clk 0:00:37.1]} 81.
Ke4 {[%clk 0:00:12.2]} 81... Rf1 {[%clk 0:00:35.9]} 82. Ke5 {[%clk 0:00:11.8]}
82... Re1+ {[%clk 0:00:35]} 83. Kd5 {[%clk 0:00:11.1]} 83... Kh4 {[%clk
0:00:32.4]} 84. Kc4 {[%clk 0:00:10.8]} 84... Kh5 {[%clk 0:00:31.7]} 85. Kd3
{[%clk 0:00:10.4]} 85... Kh6 {[%clk 0:00:31.2]} 86. Kd2 {[%clk 0:00:09.8]} 86...
Re7 {[%clk 0:00:30.7]} 87. Rg2 {[%clk 0:00:07.4]} 87... Rd7+ {[%clk 0:00:30.3]}
88. Ke3 {[%clk 0:00:05.7]} 88... Re7+ {[%clk 0:00:29.6]} 89. Kd3 {[%clk
0:00:05.4]} 89... Ra7 {[%clk 0:00:28.2]} 90. Kd4 {[%clk 0:00:05]} 90... Kh5
{[%clk 0:00:26.9]} 91. Kc5 {[%clk 0:00:04.7]} 91... Kh4 {[%clk 0:00:26.8]} 92.
Kb6 {[%clk 0:00:04.2]} 92... Rf7 {[%clk 0:00:25.9]} 93. Re2 {[%clk 0:00:03.2]}
93... Rf6+ {[%clk 0:00:24.9]} 94. Kb7 {[%clk 0:00:01.8]} 94... Rf7+ {[%clk
0:00:24.4]} 95. Kb8 {[%clk 0:00:01.6]} 95... Kg3 {[%clk 0:00:23.8]} 96. Kc8
{[%clk 0:00:01]} 96... Kf3 {[%clk 0:00:22.9]} 97. Rd2 {[%clk 0:00:00.4]} 97...
Rf8+ {[%clk 0:00:21.2]} 0-1

[Event "Live Chess"]
[Site "Chess.com"]
[Date "2023.05.21"]
[Round "-"]
[White "Alfiedog12"]
[Black "jimwad"]
[Result "0-1"]
[WhiteElo "884"]
[BlackElo "1222"]
[TimeControl "300"]
[EndTime "7:11:58 PDT"]
[Termination "jimwad won by resignation"]

1. d4 {[%clk 0:04:57.2]} 1... d5 {[%clk 0:04:58.8]} 2. Nf3 {[%clk 0:04:56.8]}
2... Nc6 {[%clk 0:04:57.8]} 3. Bf4 {[%clk 0:04:55.8]} 3... Bf5 {[%clk
0:04:56.3]} 4. e3 {[%clk 0:04:55.2]} 4... Nf6 {[%clk 0:04:55.1]} 5. Bd3 {[%clk
0:04:54.5]} 5... Bg4 {[%clk 0:04:49.8]} 6. h3 {[%clk 0:04:50.9]} 6... Bh5 {[%clk
0:04:48.5]} 7. g4 {[%clk 0:04:48.6]} 7... Bg6 {[%clk 0:04:47.5]} 8. Nbd2 {[%clk
0:04:47.8]} 8... Bxd3 {[%clk 0:04:45.1]} 9. cxd3 {[%clk 0:04:46.1]} 9... e6
{[%clk 0:04:43.9]} 10. g5 {[%clk 0:04:40.4]} 10... Nh5 {[%clk 0:04:40.1]} 11.
Ne5 {[%clk 0:04:33.5]} 11... Nxf4 {[%clk 0:04:37.8]} 12. exf4 {[%clk 0:04:29.5]}
12... Nxd4 {[%clk 0:04:35.1]} 13. Rg1 {[%clk 0:04:13.6]} 13... g6 {[%clk
0:04:31.2]} 14. h4 {[%clk 0:04:11]} 14... Nf5 {[%clk 0:04:29.2]} 15. h5 {[%clk
0:04:09.5]} 15... Bd6 {[%clk 0:04:06.7]} 16. Qa4+ {[%clk 0:03:55.4]} 16... c6
{[%clk 0:04:03.9]} 17. hxg6 {[%clk 0:03:27]} 17... hxg6 {[%clk 0:03:59.4]} 18.
O-O-O {[%clk 0:03:26.4]} 18... Bxe5 {[%clk 0:03:57.6]} 19. fxe5 {[%clk
0:03:24.4]} 19... Qb6 {[%clk 0:03:34]} 20. Rh1 {[%clk 0:03:08.2]} 20... Rxh1
{[%clk 0:03:30.5]} 21. Rxh1 {[%clk 0:03:05.6]} 21... O-O-O {[%clk 0:03:29]} 22.
Rh7 {[%clk 0:02:55.4]} 22... Rf8 {[%clk 0:03:26.7]} 23. Qa3 {[%clk 0:02:50.6]}
23... c5 {[%clk 0:03:20]} 24. Nb3 {[%clk 0:02:41.5]} 24... Qb4 {[%clk
0:02:47.7]} 25. Qxa7 {[%clk 0:02:25.9]} 25... Qe1+ {[%clk 0:02:46.1]} 26. Kc2
{[%clk 0:02:21.1]} 26... Qxf2+ {[%clk 0:02:42.9]} 27. Nd2 {[%clk 0:02:19.2]}
27... Nd4+ {[%clk 0:02:38.2]} 28. Kc3 {[%clk 0:02:13.7]} 28... Nb5+ {[%clk
0:02:36.3]} 29. Kc2 {[%clk 0:02:08.7]} 29... Nxa7 {[%clk 0:02:34.5]} 0-1

[Event "Live Chess"]
[Site "Chess.com"]
[Date "2023.05.21"]
[Round "-"]
[White "SupremeTactician"]
[Black "ameetghasi100"]
[Result "0-1"]
[WhiteElo "2222"]
[BlackElo "2586"]
[TimeControl "300"]
[EndTime "7:12:20 PDT"]
[Termination "ameetghasi100 won by resignation"]

1. e4 {[%clk 0:04:58.6]} 1... d6 {[%clk 0:04:59.9]} 2. d4 {[%clk 0:04:57.1]}
2... g6 {[%clk 0:04:59.8]} 3. Nc3 {[%clk 0:04:56.4]} 3... Bg7 {[%clk 0:04:59.4]}
4. Be3 {[%clk 0:04:56.2]} 4... a6 {[%clk 0:04:56.8]} 5. Bc4 {[%clk 0:04:55.7]}
5... e6 {[%clk 0:04:55.5]} 6. Nf3 {[%clk 0:04:54.7]} 6... b5 {[%clk 0:04:55]} 7.
Bb3 {[%clk 0:04:53.3]} 7... Bb7 {[%clk 0:04:54.5]} 8. a3 {[%clk 0:04:51.3]} 8...
Ne7 {[%clk 0:04:52.6]} 9. O-O {[%clk 0:04:50.2]} 9... h6 {[%clk 0:04:51.7]} 10.
h3 {[%clk 0:04:49]} 10... Nd7 {[%clk 0:04:45.7]} 11. Qd2 {[%clk 0:04:48.3]}
11... g5 {[%clk 0:04:39.6]} 12. d5 {[%clk 0:04:41]} 12... e5 {[%clk 0:04:34.7]}
13. Ne2 {[%clk 0:04:33.1]} 13... f5 {[%clk 0:04:26.7]} 14. exf5 {[%clk
0:04:30.1]} 14... Nxf5 {[%clk 0:04:25.8]} 15. Ng3 {[%clk 0:04:29]} 15... O-O
{[%clk 0:04:24.7]} 16. Nxf5 {[%clk 0:04:27.3]} 16... Rxf5 {[%clk 0:04:24.6]} 17.
c3 {[%clk 0:04:26.2]} 17... Rxf3 {[%clk 0:04:18.7]} 18. gxf3 {[%clk 0:04:23.5]}
18... Nf6 {[%clk 0:04:18.6]} 19. Rad1 {[%clk 0:04:18.9]} 19... Qd7 {[%clk
0:04:14.7]} 20. Kg2 {[%clk 0:04:17.6]} 20... Rf8 {[%clk 0:04:13.7]} 21. c4
{[%clk 0:04:14.1]} 21... Nh5 {[%clk 0:04:06.1]} 22. c5 {[%clk 0:04:11.5]} 22...
Qf5 {[%clk 0:03:56.3]} 23. Qe2 {[%clk 0:04:05.7]} 23... Bc8 {[%clk 0:03:48.8]}
24. Rh1 {[%clk 0:04:01.8]} 24... dxc5 {[%clk 0:03:47.2]} 25. d6+ {[%clk
0:03:55.1]} 25... c4 {[%clk 0:03:44.7]} 26. Bc2 {[%clk 0:03:53]} 26... Qf7
{[%clk 0:03:41.2]} 27. Bc1 {[%clk 0:03:27.2]} 27... cxd6 {[%clk 0:02:51.6]} 28.
Rxd6 {[%clk 0:03:19.4]} 28... Bb7 {[%clk 0:02:51]} 29. Be4 {[%clk 0:03:11.5]}
29... Bxe4 {[%clk 0:02:44.7]} 30. Qxe4 {[%clk 0:03:11.4]} 30... Nf6 {[%clk
0:02:43.6]} 31. Qe2 {[%clk 0:02:31.3]} 31... Qb7 {[%clk 0:02:30.5]} 32. Rhd1
{[%clk 0:02:23.5]} 32... e4 {[%clk 0:02:21.7]} 33. Rxf6 {[%clk 0:01:59.9]} 33...
Rxf6 {[%clk 0:02:00.9]} 34. Qxe4 {[%clk 0:01:57.9]} 34... Qxe4 {[%clk
0:01:52.5]} 35. fxe4 {[%clk 0:01:56.5]} 35... Re6 {[%clk 0:01:51.3]} 36. Kf3
{[%clk 0:01:53.5]} 36... Be5 {[%clk 0:01:47.4]} 37. Rd5 {[%clk 0:01:50.1]} 37...
Kf7 {[%clk 0:01:42.6]} 38. Rd7+ {[%clk 0:01:41.3]} 38... Kg6 {[%clk 0:01:38.8]}
39. Ke2 {[%clk 0:01:31.4]} 39... Kh5 {[%clk 0:01:34.2]} 40. Kf3 {[%clk
0:01:26.4]} 40... Bf6 {[%clk 0:01:23.4]} 41. Rh7 {[%clk 0:01:18.7]} 41... Bd4
{[%clk 0:01:20.2]} 42. Be3 {[%clk 0:01:12.4]} 42... Bxb2 {[%clk 0:01:17.4]} 0-1

[Event "Live Chess"]
[Site "Chess.com"]
[Date "2023.05.21"]
[Round "-"]
[White "elizaveta_frundina"]
[Black "Tushinskiy"]
[Result "1-0"]
[WhiteElo "1587"]
[BlackElo "2203"]
[TimeControl "300"]
[EndTime "7:12:26 PDT"]
[Termination "elizaveta_frundina won - game abandoned"]

1. e4 {[%clk 0:04:53.9]} 1... e5 {[%clk 0:04:59]} 2. Nf3 {[%clk 0:04:52.6]} 2...
d6 {[%clk 0:04:58.9]} 3. d4 {[%clk 0:04:51.6]} 3... Bg4 {[%clk 0:04:54]} 4. dxe5
{[%clk 0:04:48.8]} 4... Nd7 {[%clk 0:04:52.8]} 5. exd6 {[%clk 0:04:45.4]} 5...
Bxd6 {[%clk 0:04:52.7]} 6. Nc3 {[%clk 0:04:42.9]} 6... Qe7 {[%clk 0:04:52]} 7.
Be2 {[%clk 0:04:40.7]} 7... Ngf6 {[%clk 0:04:50.8]} 8. Bg5 {[%clk 0:04:35.7]}
8... O-O-O {[%clk 0:04:49.2]} 9. Bxf6 {[%clk 0:04:20.2]} 9... Nxf6 {[%clk
0:04:46.1]} 10. Qc1 {[%clk 0:04:02]} 10... Nxe4 {[%clk 0:04:43.5]} 11. Nxe4
{[%clk 0:03:38.2]} 11... Qxe4 {[%clk 0:04:43.4]} 12. Qe3 {[%clk 0:03:34.1]}
12... Bxf3 {[%clk 0:04:35.5]} 13. Qxf3 {[%clk 0:03:21.9]} 13... Qxf3 {[%clk
0:04:32]} 14. Bxf3 {[%clk 0:03:17.9]} 14... Rhe8+ {[%clk 0:04:30.4]} 15. Kf1
{[%clk 0:03:14.8]} 15... Be5 {[%clk 0:04:13.8]} 16. Rb1 {[%clk 0:03:10.6]} 16...
Rd2 {[%clk 0:04:09.4]} 17. c3 {[%clk 0:02:57.1]} 17... g6 {[%clk 0:04:03]} 18.
g3 {[%clk 0:02:45.8]} 18... f5 {[%clk 0:03:58.8]} 19. Kg2 {[%clk 0:02:41.9]}
19... Bd6 {[%clk 0:03:56.9]} 20. Rhd1 {[%clk 0:02:33.8]} 20... Rc2 {[%clk
0:03:55]} 21. Re1 {[%clk 0:02:16.3]} 1-0

[Event "Live Chess"]
[Site "Chess.com"]
[Date "2023.05.21"]
[Round "-"]
[White "ossie57"]
[Black "hturner40"]
[Result "1-0"]
[WhiteElo "1840"]
[BlackElo "1760"]
[TimeControl "300"]
[EndTime "7:12:28 PDT"]
[Termination "ossie57 won on time"]

1. d4 {[%clk 0:04:59.3]} 1... Nf6 {[%clk 0:04:58]} 2. Nc3 {[%clk 0:04:57.9]}
2... d5 {[%clk 0:04:55.8]} 3. Bf4 {[%clk 0:04:56]} 3... a6 {[%clk 0:04:53]} 4.
e3 {[%clk 0:04:53.6]} 4... c5 {[%clk 0:04:51.4]} 5. dxc5 {[%clk 0:04:49.8]} 5...
Qa5 {[%clk 0:04:49.4]} 6. Nf3 {[%clk 0:04:41.7]} 6... Qxc5 {[%clk 0:04:47.9]} 7.
Bd3 {[%clk 0:04:39.6]} 7... Nc6 {[%clk 0:04:44.4]} 8. O-O {[%clk 0:04:38]} 8...
Bg4 {[%clk 0:04:42.8]} 9. h3 {[%clk 0:04:36.6]} 9... Bxf3 {[%clk 0:04:40.9]} 10.
Qxf3 {[%clk 0:04:35.5]} 10... e5 {[%clk 0:04:39.7]} 11. Bg5 {[%clk 0:04:33.8]}
11... e4 {[%clk 0:04:38.7]} 12. Nxe4 {[%clk 0:04:17.5]} 12... dxe4 {[%clk
0:04:32.8]} 13. Bxe4 {[%clk 0:04:17.4]} 13... Nxe4 {[%clk 0:04:17.4]} 14. Qxe4+
{[%clk 0:04:15.3]} 14... Be7 {[%clk 0:04:15.9]} 15. Bxe7 {[%clk 0:04:03.5]}
15... Qxe7 {[%clk 0:04:13.6]} 16. Qg4 {[%clk 0:03:58.6]} 16... O-O {[%clk
0:04:11.5]} 17. h4 {[%clk 0:03:57.8]} 17... Ne5 {[%clk 0:03:56.7]} 18. Qg3
{[%clk 0:03:49.7]} 18... Rac8 {[%clk 0:03:29.7]} 19. c3 {[%clk 0:03:36.3]} 19...
Rfd8 {[%clk 0:03:21.6]} 20. Rad1 {[%clk 0:03:29.8]} 20... f6 {[%clk 0:03:03]}
21. Qf4 {[%clk 0:03:14.2]} 21... Rxd1 {[%clk 0:02:48.4]} 22. Rxd1 {[%clk
0:03:12.7]} 22... Rd8 {[%clk 0:02:46.9]} 23. Rxd8+ {[%clk 0:03:02.4]} 23... Qxd8
{[%clk 0:02:43.9]} 24. Qa4 {[%clk 0:02:57.3]} 24... Qd7 {[%clk 0:02:40.5]} 25.
Qb3+ {[%clk 0:02:52]} 25... Qf7 {[%clk 0:02:39]} 26. Qb6 {[%clk 0:02:49.5]}
26... Qd5 {[%clk 0:02:27.3]} 27. Qc7 {[%clk 0:02:30.4]} 27... Qd1+ {[%clk
0:01:53.7]} 28. Kh2 {[%clk 0:02:20.6]} 28... Qd7 {[%clk 0:01:27.7]} 29. Qc5
{[%clk 0:02:11.3]} 29... h6 {[%clk 0:01:15.1]} 30. a3 {[%clk 0:02:07.2]} 30...
Kh7 {[%clk 0:01:06.1]} 31. Qb4 {[%clk 0:01:54.5]} 31... Qd5 {[%clk 0:00:59.1]}
32. Qf8 {[%clk 0:01:39.3]} 32... Qe4 {[%clk 0:00:43.2]} 33. Qb4 {[%clk
0:01:32.2]} 33... Qxb4 {[%clk 0:00:39]} 34. axb4 {[%clk 0:01:32.1]} 34... b5
{[%clk 0:00:34.7]} 35. b3 {[%clk 0:01:20.4]} 35... Kg8 {[%clk 0:00:24.9]} 36.
Kg3 {[%clk 0:01:19.4]} 36... Kf7 {[%clk 0:00:23.4]} 37. f4 {[%clk 0:01:17.9]}
37... Nd3 {[%clk 0:00:18.5]} 38. Kf3 {[%clk 0:01:17.2]} 38... Nc1 {[%clk
0:00:17]} 39. c4 {[%clk 0:01:16.7]} 39... Nxb3 {[%clk 0:00:15.1]} 40. cxb5
{[%clk 0:01:16.2]} 40... axb5 {[%clk 0:00:13.6]} 41. g4 {[%clk 0:01:15.6]} 41...
Ke6 {[%clk 0:00:11.7]} 42. h5 {[%clk 0:01:15]} 42... Nd2+ {[%clk 0:00:07.6]} 43.
Ke2 {[%clk 0:01:13.9]} 43... Nc4 {[%clk 0:00:06.9]} 44. Kd3 {[%clk 0:01:12.6]}
44... Kd5 {[%clk 0:00:04.7]} 45. e4+ {[%clk 0:01:11.5]} 45... Kd6 {[%clk
0:00:03.6]} 46. Kd4 {[%clk 0:01:11.1]} 46... Nb2 {[%clk 0:00:01.3]} 47. e5+
{[%clk 0:01:10.3]} 1-0

[Event "Live Chess"]
[Site "Chess.com"]
[Date "2023.05.21"]
[Round "-"]
[White "BearFromUkraine"]
[Black "luckywookie"]
[Result "1-0"]
[WhiteElo "1073"]
[BlackElo "818"]
[TimeControl "300"]
[EndTime "7:12:35 PDT"]
[Termination "BearFromUkraine won by checkmate"]

1. e4 {[%clk 0:04:57.2]} 1... c6 {[%clk 0:04:58]} 2. d4 {[%clk 0:04:55.6]} 2...
d5 {[%clk 0:04:57.1]} 3. exd5 {[%clk 0:04:55]} 3... cxd5 {[%clk 0:04:50.3]} 4.
Nf3 {[%clk 0:04:47.8]} 4... Nc6 {[%clk 0:04:49.2]} 5. Bb5 {[%clk 0:04:34.6]}
5... e6 {[%clk 0:04:41.2]} 6. O-O {[%clk 0:04:30]} 6... Bd7 {[%clk 0:04:39.2]}
7. Nc3 {[%clk 0:04:27.2]} 7... Nge7 {[%clk 0:04:29.1]} 8. Re1 {[%clk 0:04:20.7]}
8... a6 {[%clk 0:04:27.3]} 9. Bxc6 {[%clk 0:04:18.7]} 9... bxc6 {[%clk
0:04:23.5]} 10. Bf4 {[%clk 0:04:16.8]} 10... Nf5 {[%clk 0:04:12.4]} 11. Qe2
{[%clk 0:04:02]} 11... c5 {[%clk 0:04:09.8]} 12. Rad1 {[%clk 0:03:53.1]} 12...
Qb6 {[%clk 0:03:45.3]} 13. dxc5 {[%clk 0:03:51.4]} 13... Bxc5 {[%clk 0:03:32.9]}
14. Nxd5 {[%clk 0:03:47.1]} 14... Bxf2+ {[%clk 0:03:25.9]} 15. Qxf2 {[%clk
0:03:42.9]} 15... Qxf2+ {[%clk 0:03:23.7]} 16. Kxf2 {[%clk 0:03:42.1]} 16... O-O
{[%clk 0:02:59.3]} 17. Nc3 {[%clk 0:03:36.1]} 17... Rab8 {[%clk 0:02:51]} 18.
Rxd7 {[%clk 0:03:33.1]} 18... Rxb2 {[%clk 0:02:46.5]} 19. Rd2 {[%clk 0:03:24.5]}
19... Rc8 {[%clk 0:02:31]} 20. Ne4 {[%clk 0:03:14.8]} 20... Rcxc2 {[%clk
0:02:25.3]} 21. Rxc2 {[%clk 0:03:13.8]} 21... Rxc2+ {[%clk 0:02:24.1]} 22. Re2
{[%clk 0:03:13.1]} 22... Rxe2+ {[%clk 0:02:20.3]} 23. Kxe2 {[%clk 0:03:12.5]}
23... f6 {[%clk 0:02:13.8]} 24. Kd3 {[%clk 0:03:06.2]} 24... e5 {[%clk
0:02:12.8]} 25. Bg3 {[%clk 0:03:02.4]} 25... Nd4 {[%clk 0:02:06.3]} 26. Nxd4
{[%clk 0:03:00.8]} 26... exd4 {[%clk 0:02:05.8]} 27. Kxd4 {[%clk 0:03:00.2]}
27... Kf7 {[%clk 0:02:05.3]} 28. Kc5 {[%clk 0:02:59.2]} 28... Ke6 {[%clk
0:02:02.2]} 29. Kb6 {[%clk 0:02:57.2]} 29... f5 {[%clk 0:02:00.2]} 30. Nc5+
{[%clk 0:02:55.3]} 30... Kd5 {[%clk 0:01:58.1]} 31. Nxa6 {[%clk 0:02:54.2]}
31... Ke4 {[%clk 0:01:57.1]} 32. a4 {[%clk 0:02:51.4]} 32... g5 {[%clk
0:01:56.3]} 33. Nc7 {[%clk 0:02:50.4]} 33... h5 {[%clk 0:01:55]} 34. a5 {[%clk
0:02:49.1]} 34... f4 {[%clk 0:01:54.1]} 35. Bf2 {[%clk 0:02:47.8]} 35... g4
{[%clk 0:01:51.9]} 36. a6 {[%clk 0:02:46.7]} 36... f3 {[%clk 0:01:43.9]} 37.
gxf3+ {[%clk 0:02:45.3]} 37... Kxf3 {[%clk 0:01:42.2]} 38. Bc5 {[%clk
0:02:38.4]} 38... h4 {[%clk 0:01:39.3]} 39. a7 {[%clk 0:02:37.6]} 39... g3
{[%clk 0:01:38.5]} 40. a8=Q+ {[%clk 0:02:36.8]} 40... Kg4 {[%clk 0:01:35.7]} 41.
hxg3 {[%clk 0:02:36.1]} 41... hxg3 {[%clk 0:01:34.1]} 42. Qg8+ {[%clk
0:02:32.9]} 42... Kf3 {[%clk 0:01:32.5]} 43. Kc6 {[%clk 0:02:32.1]} 43... g2
{[%clk 0:01:30.3]} 44. Ne6 {[%clk 0:02:28.1]} 44... g1=Q {[%clk 0:01:21.8]} 45.
Qxg1 {[%clk 0:02:26.8]} 45... Ke4 {[%clk 0:01:20]} 46. Qe3+ {[%clk 0:02:25.4]}
46... Kf5 {[%clk 0:01:18.5]} 47. Nc7 {[%clk 0:02:22]} 47... Kf6 {[%clk 0:01:17]}
48. Qe4 {[%clk 0:02:20.9]} 48... Kf7 {[%clk 0:01:14.5]} 49. Qe5 {[%clk
0:02:19.4]} 49... Kg6 {[%clk 0:01:13.1]} 50. Qf4 {[%clk 0:02:18.7]} 50... Kh5
{[%clk 0:01:06.5]} 51. Ba7 {[%clk 0:02:15.7]} 51... Kg6 {[%clk 0:01:05.4]} 52.
Bb8 {[%clk 0:02:13.3]} 52... Kg7 {[%clk 0:01:03.7]} 53. Qf5 {[%clk 0:02:12.6]}
53... Kh8 {[%clk 0:01:01.7]} 54. Qg5 {[%clk 0:02:09.8]} 54... Kh7 {[%clk
0:01:00.6]} 55. Ba7 {[%clk 0:02:07.2]} 55... Kh8 {[%clk 0:00:58.9]} 56. Bd4+
{[%clk 0:02:06.2]} 56... Kh7 {[%clk 0:00:57.5]} 57. Ba7 {[%clk 0:02:04.3]} 57...
Kh8 {[%clk 0:00:55.9]} 58. Kd6 {[%clk 0:01:58.9]} 58... Kh7 {[%clk 0:00:54.8]}
59. Ke6 {[%clk 0:01:58.3]} 59... Kh8 {[%clk 0:00:53.9]} 60. Kf7 {[%clk
0:01:57.8]} 60... Kh7 {[%clk 0:00:52.7]} 61. Qg7# {[%clk 0:01:57.7]} 1-0

[Event "Live Chess"]
[Site "Chess.com"]
[Date "2023.05.21"]
[Round "-"]
[White "wot-not"]
[Black "Crowded_House"]
[Result "1-0"]
[WhiteElo "1551"]
[BlackElo "1601"]
[TimeControl "300"]
[EndTime "7:12:36 PDT"]
[Termination "wot-not won by checkmate"]

1. e4 {[%clk 0:04:57.7]} 1... e6 {[%clk 0:04:58.4]} 2. f4 {[%clk 0:04:57]} 2...
d5 {[%clk 0:04:57.4]} 3. e5 {[%clk 0:04:55.6]} 3... c5 {[%clk 0:04:54.7]} 4. Nf3
{[%clk 0:04:55.3]} 4... Nc6 {[%clk 0:04:53.7]} 5. d4 {[%clk 0:04:53.7]} 5... Qb6
{[%clk 0:04:50.4]} 6. Bd3 {[%clk 0:04:53.1]} 6... Nb4 {[%clk 0:04:44.3]} 7. O-O
{[%clk 0:04:52.3]} 7... Nxd3 {[%clk 0:04:42.7]} 8. cxd3 {[%clk 0:04:52]} 8...
cxd4 {[%clk 0:04:39.8]} 9. Nbd2 {[%clk 0:04:50.1]} 9... Ne7 {[%clk 0:04:31.1]}
10. Nb3 {[%clk 0:04:48.9]} 10... Nf5 {[%clk 0:04:22.8]} 11. Kh1 {[%clk
0:04:44.8]} 11... Ne3 {[%clk 0:04:17.3]} 12. Bxe3 {[%clk 0:04:43.8]} 12... dxe3
{[%clk 0:04:16.6]} 13. d4 {[%clk 0:04:37.5]} 13... Be7 {[%clk 0:04:14]} 14. Qe2
{[%clk 0:04:32.5]} 14... Bd7 {[%clk 0:04:11.4]} 15. Qxe3 {[%clk 0:04:30.5]}
15... O-O {[%clk 0:04:06.2]} 16. Ng5 {[%clk 0:04:26.9]} 16... h6 {[%clk
0:03:59.7]} 17. Nh3 {[%clk 0:04:25]} 17... Ba4 {[%clk 0:03:48.8]} 18. f5 {[%clk
0:04:17.1]} 18... Bxb3 {[%clk 0:03:42.1]} 19. axb3 {[%clk 0:04:15.5]} 19... Rfc8
{[%clk 0:03:31]} 20. f6 {[%clk 0:04:12.8]} 20... g6 {[%clk 0:03:12.8]} 21. fxe7
{[%clk 0:04:09.8]} 21... Rc7 {[%clk 0:03:02.1]} 22. Qxh6 {[%clk 0:04:06.5]}
22... Rxe7 {[%clk 0:03:01.3]} 23. Ng5 {[%clk 0:04:00.5]} 23... Qxd4 {[%clk
0:02:54.2]} 24. Qh7+ {[%clk 0:03:57.6]} 24... Kf8 {[%clk 0:02:53.9]} 25. Qh8#
{[%clk 0:03:54]} 1-0